Cogmind - Beta 14 @@@ ROGUE MODE // 2025.01.16 @ 08:02:03 Player: star Result: Destroyed by QQ-D9G(R) with Subdweller Beam Cannon Performance ------------- Evolutions (0) 0 Regions Visited (3) 600 Robots Destroyed (14) 70 Value Destroyed (201) 201 Prototype IDs (0) 0 Alien Tech Used (0) 0 Bonus (0) 0 TOTAL SCORE: 871 Bonus ------- None Cogmind --------- Core Integrity 0/250 Matter 280/300 Energy 73/100 System Corruption 1% Temperature Cool (10) Movement Flying (40) Location -10/Subcaves Parts ------- > --- POWER (1) -------- (None) > --- PROPULSION (2) --- Flight Unit > --- UTILITY (2) ------ Structural Scanner > --- WEAPON (2) ------- Small Laser Light Assault Rifle > --- INVENTORY (5) ---- Light Ion Engine Small Storage Unit Medium Laser Peak State ------------ > --- POWER ------------ Light Nuclear Core > --- PROPULSION ------- Flight Unit Flight Unit > --- UTILITY ---------- Small Storage Unit Structural Scanner > --- WEAPON ----------- Medium Laser Light Assault Rifle > --- INVENTORY -------- Ion Engine Flight Unit Flight Unit Small Laser [Rating: 9] Favorites ----------- Power Light Nuclear Core Engine Light Ion Engine Power Core Light Nuclear Core Propulsion Wheel Wheel Wheel Flight Unit Flight Unit Utility Structural Scanner Device Structural Scanner Storage Small Storage Unit Weapon Medium Laser Energy Gun Medium Laser Ballistic Gun Light Assault Rifle Build | -11 -10 -10 -10 ------- Run | Yrd Mat Min Sub Slots Evolved . | . . . . Power . | . . . . Propulsion . | . . . . Utility . | . . . . Weapon . | . . . . Parts Attached 19 | 6 1 4 8 Power 3 | 1 . 1 1 Engine 2 | 1 . . 1 Core 1 | . . 1 . Reactor . | . . . . Propulsion 6 | 2 . 2 2 Treads . | . . . . Leg . | . . . . Wheel 2 | 2 . . . Hover . | . . . . Flight 4 | . . 2 2 Utility 4 | 1 1 . 2 Device 2 | . 1 . 1 Storage 2 | 1 . . 1 Processor . | . . . . Hackware . | . . . . Protection . | . . . . Artifact . | . . . . Weapon 6 | 2 . 1 3 Energy Gun 4 | 2 . . 2 Energy Cannon . | . . . . Ballistic Gun 2 | . . 1 1 Ballistic Cannon . | . . . . Launcher . | . . . . Special Weapon . | . . . . Impact Weapon . | . . . . Slashing Weapon . | . . . . Piercing Weapon . | . . . . Special Melee Weapon . | . . . . Unidentified Prototypes . | . . . . Corrupted Parts 1 | . . . 1 System Corruption 1 | . . . 1 Parts Lost 8 | . . 4 4 Power 2 | . . 1 1 Propulsion 5 | . . 2 3 Utility . | . . . . Weapon 1 | . . 1 . Highest Loss Streak 4 | . . 4 4 To Critical Strikes . | . . . . Average Slot Usage (%) 83 | . 96 82 82 Engine 5 | . 14 6 . Core 8 | . . 7 12 Wheel 9 | . 28 11 . Flight 8 | . . . 26 Device 13 | . 10 14 13 Storage 9 | . 14 14 . Energy Gun 18 | . 28 18 14 Ballistic Gun 9 | . . 9 14 Peak Build Rating 9 | 6 7 9 9 Average Rating 7 | 4 6 6 7 On Entrance 5 | . 6 7 9 Naked Turns . | . . . . Heaviest Build 14 | 12 13 14 8 Greatest Support 20 | 20 20 20 8 Greatest Overweight (x) 4 | 1 . 4 . Average Overweight (x) . | . . . . Largest Inventory Capacity 8 | 8 8 8 8 Average Capacity 7 | 6 8 8 5 Most Carried 6 | 2 3 6 5 Average Carried 4 | . 2 5 4 Final Capacity 8 | 8 8 8 5 Final Carried 4 | 2 3 4 3 Class Distribution -------------------- 100% | Mutant Dominant Class ---------------- Mutant | -10/Materials Mutant | -10/Mines Mutant | -10/Subcaves Resources | -11 -10 -10 -10 ----------- Run | Yrd Mat Min Sub Matter Collected 371 | 238 18 39 76 Remotely . | . . . . Salvage Created 305 | . 70 153 82 Parts 20 | . 3 10 7 Haulers Intercepted . | . . . . Recyclers Shooed . | . . . . Parts Field Recycled . | . . . . Retrieved Matter . | . . . . Parts Self-Destructed 25 | . . . 25 Prevented . | . . . . Kills | -11 -10 -10 -10 ------- Run | Yrd Mat Min Sub Combat Hostiles Destroyed 14 | . 3 6 5 Guns 12 | . 2 5 5 AOE 1 | . 1 . . Classes Destroyed 2 | . 1 1 . Swarmer 12 | . 3 4 5 Grunt 2 | . . 2 . Best Kill Streak 6 | . 3 6 5 Combat Bots Only 6 | . 3 6 5 Max Kills in Single Turn 2 | . 1 1 2 Gunslinging . | . . . . Exploded 1 | . 1 . . Melee . | . . . . Uniques/NPCs Destroyed . | . . . . Combat | -11 -10 -10 -10 -------- Run | Yrd Mat Min Sub Hostile Shots Fired 97 | . 15 40 42 Missed 29 | . 5 5 19 Damage Taken 788 | . 80 387 321 Core 276 | . 13 95 168 Absorbed by Shields . | . . . . Core Remaining (%) 100 | 100 . . . Volleys Fired 36 | . 6 24 6 Largest 2 | . 2 2 2 Hottest 90 | . 90 90 60 Shots Fired 71 | . 12 47 12 Gun 71 | . 12 47 12 Cannon . | . . . . Launcher . | . . . . Special . | . . . . Kinetic 21 | . . 15 6 Thermal 36 | . 6 24 6 Explosive . | . . . . Electromagnetic 14 | . 6 8 . Robot Hit Streak 6 | . 3 6 3 Robot Miss Streak 3 | . 1 3 3 Penetration Max . | . . . . Secondary Targets 2 | . . . 2 Max Gunslinging Chain 1 | . . . 1 Shots Hit Robots 43 | . 8 30 5 Core Hits 16 | . 3 8 5 Critical Kills . | . . . . Critical Parts Destroyed . | . . . . Critical Strikes 1 | . . 1 . Burn 1 | . . 1 . Melee Attacks . | . . . . Impact . | . . . . Slashing . | . . . . Piercing . | . . . . Sneak Attacks . | . . . . Combat Hostiles . | . . . . Follow-up Attacks . | . . . . Damage Inflicted 525 | . 151 324 50 Guns 458 | . 84 324 50 Cannons . | . . . . Explosions 67 | . 67 . . Melee . | . . . . Ramming . | . . . . Kinetic 97 | . . 69 28 Thermal 363 | . 131 210 22 Explosive . | . . . . Electromagnetic 65 | . 20 45 . Impact . | . . . . Slashing . | . . . . Piercing . | . . . . Highest Corruption 1 | . . . 1 Average Corruption 1 | . . . 1 Corruption Purged . | . . . . Corruption Blocked . | . . . . Overload Shots . | . . . . Overflow Damage 16 | . 16 . . Projectiles . | . . . . Explosions 16 | . 16 . . Melee . | . . . . Knockbacks . | . . . . Impact . | . . . . Kinetic . | . . . . Secondary . | . . . . Self-Inflicted Damage . | . . . . Shots . | . . . . Rammed . | . . . . Targets Rammed . | . . . . Kicked . | . . . . Crushed . | . . . . Highest Temperature 269 | . 180 269 229 Average Temperature 108 | . 93 111 128 Received Heat Transfer 466 | . . 129 337 Siege Activations . | . . . . Robots Corrupted . | . . . . Combat Hostiles . | . . . . Parts Fried . | . . . . Impact Corruptions . | . . . . Robots Melted 1 | . . 1 . Combat Hostiles 1 | . . 1 . Parts Melted 3 | . . 1 2 Heat Transferred 1038 | . 285 703 50 Parts Sabotaged . | . . . . Parts Stolen . | . . . . Parts Stripped . | . . . . Power Chain Reactions 1 | . 1 . . Alert | -11 -10 -10 -10 ------- Run | Yrd Mat Min Sub Peak Influence 236 | . 95 236 . Initial 36 | . . 36 . Average 134 | . 21 166 . Maximum Alert Level 1 | . . 1 . Low Security (%) 62 | 100 100 52 . Level 1 37 | . . 47 . Level 2 . | . . . . Level 3 . | . . . . Level 4 . | . . . . Level 5 . | . . . . High Security . | . . . . Max Security . | . . . . Squads Dispatched 2 | . 2 . . Investigation . | . . . . Extermination . | . . . . Reinforcement 2 | . 2 . . Assault . | . . . . Garrison . | . . . . Intercept . | . . . . Searches Triggered . | . . . . Construction Impeded . | . . . . Haulers Reinforced . | . . . . Active Scanning Responses . | . . . . Cargo Convoy Interrupts . | . . . . Stealth | -11 -10 -10 -10 --------- Run | Yrd Mat Min Sub Distress Signals 2 | . 2 . . Communications Jammed . | . . . . Distress Signals . | . . . . Times Spotted 33 | . 6 9 18 Peak Tracking Total 8 | . 4 3 8 Tactical Retreats 5 | . . 2 3 Traps | -11 -10 -10 -10 ------- Run | Yrd Mat Min Sub Traps Triggered . | . . . . Indirectly . | . . . . Trap Hack Attempts . | . . . . Triggered . | . . . . Disarmed . | . . . . Reprogrammed . | . . . . Reused . | . . . . Traps Extracted . | . . . . Installed . | . . . . Triggered . | . . . . Machines | -11 -10 -10 -10 ---------- Run | Yrd Mat Min Sub Machines Disabled . | . . . . Max in Single Turn . | . . . . Machines Repaired . | . . . . Machines Dismantled . | . . . . Machines Sabotaged . | . . . . Overloaded Fab Kills . | . . . . Hacking | -11 -10 -10 -10 --------- Run | Yrd Mat Min Sub Machines Accessed . | . . . . Terminals . | . . . . Fabricators . | . . . . Repair Stations . | . . . . Recycling Units . | . . . . Scanalyzers . | . . . . Garrison Access . | . . . . Total Hacks . | . . . . Successful . | . . . . Failed . | . . . . Catastrophic . | . . . . Database Lockouts . | . . . . Manual . | . . . . Terminals . | . . . . Fabricators . | . . . . Repair Stations . | . . . . Recycling Units . | . . . . Scanalyzers . | . . . . Garrison Access . | . . . . Terminal Hacks . | . . . . Fabricator Hacks . | . . . . Repair Station Hacks . | . . . . Recycling Unit Hacks . | . . . . Scanalyzer . | . . . . Garrison Access Hacks . | . . . . Unauthorized Hacks . | . . . . Terminals . | . . . . Fabricators . | . . . . Repair Stations . | . . . . Recycling Units . | . . . . Scanalyzers . | . . . . Garrison Access . | . . . . Data Cores Recovered . | . . . . Used . | . . . . Hacking Detections . | . . . . Full Trace Events . | . . . . Feedback Events . | . . . . Feedback Blocked . | . . . . Robot Schematics Acquired . | . . . . Robots Built . | . . . . Authchips . | . . . . Time . | . . . . Total Robot Build Rating . | . . . . Part Schematics Acquired . | . . . . Parts Built . | . . . . Authchips . | . . . . Time . | . . . . Total Part Build Rating . | . . . . Parts Repaired . | . . . . Time . | . . . . Parts Recycled . | . . . . Recycled Matter . | . . . . Retrieved Matter . | . . . . Retrieved Components . | . . . . Parts Scanalyzed . | . . . . Part Schematics Acquired . | . . . . Parts Damaged . | . . . . Bothacking | -11 -10 -10 -10 ------------ Run | Yrd Mat Min Sub Used RIF Installer . | . . . . Robots Hacked . | . . . . Non-combat . | . . . . Combat . | . . . . Robot Hacks Applied . | . . . . Relay Couplers Released . | . . . . Fabnet Peak Effective % . | . . . . Robots Rewired . | . . . . Allies Hacked . | . . . . Hacks Repelled . | . . . . Allies | -11 -10 -10 -10 -------- Run | Yrd Mat Min Sub Total Allies . | . . . . Largest Group . | . . . . Highest-Rated Group . | . . . . Highest-Rated Ally . | . . . . Total Orders . | . . . . Ally Attacks . | . . . . Total Damage . | . . . . Kills . | . . . . Allies Corrupted . | . . . . Allies Melted . | . . . . Intel | -11 -10 -10 -10 ------- Run | Yrd Mat Min Sub Robot Analysis Total . | . . . . Derelict Logs Recovered 1 | . . 1 . Drone Launches . | . . . . Drone Recoveries . | . . . . Exploration | -11 -10 -10 -10 ------------- Run | Yrd Mat Min Sub Turns Passed 859 | 43 86 487 243 Spaces Moved 871 | 40 80 202 549 Core 40 | 7 . 33 . Treads . | . . . . Legs . | . . . . Wheels 277 | 33 80 164 . Hover . | . . . . Flight 554 | . . 5 549 Fastest Speed 37 | 50 80 80 37 Average Speed 59 | 77 80 106 37 Slowest Speed 250 | 100 80 250 40 Overloaded Moves . | . . . . Propulsion Burnouts . | . . . . Robots Hopped . | . . . . Cave-ins Triggered . | . . . . Exploration Rate (%) 26 | 3 17 47 38 Regions Visited 3 Branch Regions 2 Pre-discovered Areas . | . . . . Known Exits Taken . | . . . . Unknown Exits Taken 3 | 1 1 1 . Scrap Searched . | . . . . Spaces Dug . | . . . . Terrain Destroyed 5 | . 5 . . Melee . | . . . . Projectile . | . . . . AOE 5 | . 5 . . Terrain Rammed . | . . . . Walls Destroyed . | . . . . Machines Disabled . | . . . . Actions | -11 -10 -10 -10 --------- Run | Yrd Mat Min Sub Total 1147 | 48 89 429 581 Wait 206 | 1 2 196 7 Move 868 | 39 79 201 549 Hop . | . . . . Pick Up 10 | 2 1 4 3 Fast Attach 8 | 6 1 1 . Attach 10 | . . 3 7 Detach 5 | . . . 5 Swap 1 | . . . 1 Drop 3 | . . . 3 Fire 36 | . 6 24 6 Melee . | . . . . Ram . | . . . . Kick . | . . . . Crush . | . . . . Escape Stasis . | . . . . Rewire . | . . . . Trap . | . . . . Miscellaneous . | . . . . Route ------- -11/Scrapyard -10/Materials -10/Mines (discovered 2 exits: [*Mat] / [*Sub]) -10/Subcaves (discovered 3 exits: [*Mat x2] / [*Rec]) History --------- Turn | Location | Event 17 | -11/Scrapyard | Discovered new exit (range 16) 44 | -11/Scrapyard | Entered Materials 91 | -10/Materials | Discovered new exit (range 15) 130 | -10/Materials | Entered Mines 244 | -10/Mines | Discovered new exit (range 7) 266 | -10/Mines | Learned 2 Materials zone layouts 318 | -10/Mines | Build established: Mutant 361 | -10/Mines | Discovered new exit (range 8) 375 | -10/Mines | Lost 4 parts (1p2n1w) 617 | -10/Mines | Entered Subcaves 618 | -10/Subcaves | Discovered new exit (range 9) 710 | -10/Subcaves | Shifting Twisted Machinery released Battle Cannon 710 | -10/Subcaves | Shifting Twisted Machinery released Shrapnel Trap 715 | -10/Subcaves | Discovered new exit (range 8) 750 | -10/Subcaves | Discovered new exit (range 14) 759 | -10/Subcaves | Core integrity fell below 50% 859 | -10/Subcaves | Core integrity fell below 20% 860 | -10/Subcaves | Destroyed by QQ-D9G(R) with Subdweller Beam Cannon Last Messages --------------- 00765_ Flight Unit fries itself beyond repair. 00765_ Flight Unit melted. 00765_ S-10 Pest destroyed. 00765_ Switching to secondary target: S-10 Pest. 00771_ S-10 Pest destroyed. 00772_ Lgt. Assault Rifle fries itself beyond repair. 00774_ Acquired 6 matter. 00776_ Dropped Ion Engine. 00777_ Acquired Lgt. Ion Engine. 00784_ IJ-V0U(O) collects matter. 00799_ Critical hit (Meltdown: +250). 00834_ Subatomizers dissect the Sub. Power Source. 00849_ Flight Unit destroyed. 00849_ Lgt. Nuclear Core destroyed. 00856_ Flight Unit destroyed. 00856_ Dropped Corrupted Flight Unit. 00857_ Acquired Corrupted Flight Unit. 00859_ Integrated Corrupted Flight Unit (+1). 00859_ Corrupted Flight Unit temporarily disabled. 00859_ Flight Unit destroyed. Map ----- +----------------------------------------------------+ | ???????????????????## ### " " #### ## | | ???????????????????### ##### ##### # | | ???????????????????#### ##### #### | | ????????????????????#### ### ### | | ?????????????????????#### ### | | ????????????????????##### #### | | ????????????????????##### #### | | ????????????????????## #### # | | ????????????????????### ### ## #### #### | | ????????????????????#### ## ## ##### ##### | | ?????????????????????### ## #### ###?? | | ???????????????????##### "### #### ##??? | | ??????????????????###### ############ ###??? | | ??????????????????###"" #####################??? | | ???????????????##### ##########?????######???? | | ???????????????###### ####????"##?????????????? | | ???????????????## ###??##""" ????????????? ? | | ???????????????### ######## " ???????????????? | | ???????????????### R#########""?????????????#### | | ???????????????## R #### " ??????????? ##### | | ???????????????### ###R ####&" ??????????? ## ## | | ???????????????## #####""]######????? # | | ??????????????### #####" #######?????? ## | | ????????????##### ####" ### ##????? ### | | ???????????##### #### ##???## ##? | | ?######????### @ ##### ####### ##? | | ############# ###### ###### " ### | | ### # ####### R ###### ### ## " ##" | | #### ### ## " "" | | "" #### " """"< | | ##"# # ## """#### # # "" """" | | ##"## ### ###########""### "" | | ##"" ## ###########"" ###? | | ##" ## #### "?????"" ###??? | | #"" ##### ## ###" ??????" ##??? | | #" "& ##### ## ###""## ?????" ##??? | | #""% ########### "" ## ? ##"??? | | #" % ## ####### "" ? ""??? | | % & ##??##### "" ?"" ????? | | ###!* ## #### """" ???"""???? | | ### ### ## #### """"""###"????"##???? | | #### ####### ## "#####????###???? | | ############## ##### ### ## ###?????????????? | | ??######???#########################?????????????? | | ?????????????######???#############??????????????? | | ?????????????????????????????????????????????????? | | ?????????????????????????????????????????????????? | | ?????????????????????????????????????????????????? | | ?????????????????????????????????????????????????? | | ?????????????????????????????????????????????????? | +----------------------------------------------------+ Best States ------------- Heat Dissipation 25 Energy Generation 14 Energy Capacity 160 Matter Stores 300 Matter Capacity 300 Sight Range 16 Terrain Scan Density 10 Evasion (%) 62 Item Schematics ----------------- None Robot Schematics ------------------ None Fabricated ------------ Nothing Alien Tech Used ----------------- None Achievements -------------- None Challenges ------------ None Game ------ Seed MiningBraceAutobeam Manual? 0 Play Time 00:10:29 Cumulative 140.3 hours Start 2025.01.16 @ 07:52:22 End 2025.01.16 @ 08:02:03 Sessions 1 Manual Loads 0 Difficulty Rogue Special Mode None Game No. 239 Rogue 239 Adventurer 0 Explorer 0 Win Type - Total 1 Types 1/0/0/0/0/0/0/0/0 Lore% 52 Gallery% 62 Achievement% 48 Wizard Run 0 Options --------- Layout 0 ASCII 0 Keyboard 1 Movement Numpad Keybinds 0 Fullscreen 2 Font 18/SmallcapsGlow Map View 76x50 Zoom Use 0% Tactical HUD 1 Map Filters NONE Filters NONE Steam 1 RUN: 5b23b369-0936-4d99-968b-3831d0d32eb8